bitfinex/quotes_BTCUSD_20230901
["timestamp","ask_amount","ask_price","bid_price","bid_amount"]
[1693567695314,1.04491164,26015.0,26014.0,0.59574279]
[1693567695514,1.04479164,26015.0,26014.0,0.59574279]
[1693567695735,0.91555164,26015.0,26014.0,0.59574279]
[1693567695942,1.04479164,26015.0,26014.0,0.59574279]
[1693567696149,0.91555164,26015.0,26014.0,0.59574279]
[1693567696304,0.91549164,26015.0,26014.0,0.59574279]
[1693567696702,1.04659164,26015.0,26014.0,0.59574279]
[1693567696948,0.91513164,26015.0,26014.0,0.59574279]
[1693567697096,0.91507164,26015.0,26014.0,0.59574279]
[1693567697558,0.91501164,26015.0,26014.0,0.59574279]
[1693567697766,0.91489164,26015.0,26014.0,0.59574279]
[1693567698089,0.91495164,26015.0,26014.0,0.59574279]
[1693567698270,0.91489164,26015.0,26014.0,0.59574279]
[1693567698481,0.91483164,26015.0,26014.0,0.59574279]
[1693567698840,0.91477164,26015.0,26014.0,0.59574279]
[1693567699062,0.91483164,26015.0,26014.0,0.59574279]
[1693567699425,0.91447164,26015.0,26014.0,0.59574279]
[1693567699602,0.91465164,26015.0,26014.0,0.59574279]
[1693567699830,0.91501164,26015.0,26014.0,0.59574279]
[1693567699969,0.91495164,26015.0,26014.0,0.59574279]
[1693567700420,0.91483164,26015.0,26014.0,0.59574279]
[1693567700620,0.91273164,26015.0,26014.0,0.59574279]
[1693567700821,1.05007164,26015.0,26014.0,0.59574279]
[1693567700991,0.91513164,26015.0,26014.0,0.59574279]
[1693567701192,0.91231164,26015.0,26014.0,0.59574279]
[1693567701386,0.91513164,26015.0,26014.0,0.59574279]
[1693567701587,1.87605474,26015.0,26014.0,0.59574279]
[1693567701788,1.87623474,26015.0,26014.0,0.59574279]
[1693567702202,2.00613474,26015.0,26014.0,0.59574279]
[1693567702407,2.00661474,26015.0,26014.0,0.59574279]
[1693567702627,2.00697474,26015.0,26014.0,0.59574279]
[1693567702945,1.87389474,26015.0,26014.0,0.59574279]
[1693567703143,1.87419474,26015.0,26014.0,0.59574279]
[1693567703352,1.87437474,26015.0,26014.0,0.59574279]
[1693567703488,1.87461474,26015.0,26014.0,0.59574279]
[1693567703685,1.87491474,26015.0,26014.0,0.59574279]
[1693567704074,1.87497474,26015.0,26014.0,0.59574279]
[1693567704254,1.87629474,26015.0,26014.0,0.59574279]
[1693567704488,2.00769474,26015.0,26014.0,0.59574279]
[1693567704665,2.00853474,26015.0,26014.0,0.59574279]
[1693567704894,2.00889474,26015.0,26014.0,0.59574279]
[1693567705046,2.00913474,26015.0,26014.0,0.59574279]
[1693567705382,2.00949474,26015.0,26014.0,0.59574279]
[1693567705597,2.01225474,26015.0,26014.0,0.59574279]
[1693567705792,2.01261474,26015.0,26014.0,0.59574279]
[1693567706005,2.01285474,26015.0,26014.0,0.59574279]
[1693567706211,2.01321474,26015.0,26014.0,0.59574279]
[1693567706413,2.01357474,26015.0,26014.0,0.59574279]
[1693567706612,2.01381474,26015.0,26014.0,0.59574279]
[1693567706808,2.01405474,26015.0,26014.0,0.53808179]
[1693567707037,2.01429474,26015.0,26014.0,0.53808179]
[1693567707210,2.01465474,26015.0,26014.0,0.53808179]
[1693567707436,2.01645474,26015.0,26014.0,0.53808179]
[1693567707572,2.01681474,26015.0,26014.0,0.53808179]
[1693567707774,2.01717474,26015.0,26014.0,0.59574279]
[1693567708022,2.01729474,26015.0,26014.0,0.59574279]
[1693567708237,2.01909474,26015.0,26014.0,0.59574279]
[1693567708459,2.01933474,26015.0,26014.0,0.59574279]
[1693567708793,2.01969474,26015.0,26014.0,0.59574279]
[1693567708902,2.01993474,26015.0,26014.0,0.59574279]
[1693567709226,2.01921474,26015.0,26014.0,0.59574279]
[1693567709400,2.01945474,26015.0,26014.0,0.59574279]
[1693567709613,2.01969474,26015.0,26014.0,0.59574279]
[1693567709818,2.01957474,26015.0,26014.0,0.59574279]
[1693567710018,2.01981474,26015.0,26014.0,0.59574279]
[1693567710230,2.02029474,26015.0,26014.0,0.59574279]
[1693567710431,2.02149474,26015.0,26014.0,0.59574279]
[1693567710632,2.02173474,26015.0,26014.0,0.59574279]
[1693567710901,2.02053474,26015.0,26014.0,0.59574279]
[1693567711124,2.02221474,26015.0,26014.0,0.59574279]
[1693567711296,2.02233474,26015.0,26014.0,0.59574279]
[1693567711604,2.02257474,26015.0,26014.0,0.59574279]
[1693567711736,2.02269474,26015.0,26014.0,0.59574279]
[1693567711941,2.02305474,26015.0,26014.0,0.59574279]
[1693567712267,2.02329474,26015.0,26014.0,0.59574279]
[1693567712472,2.02341474,26015.0,26014.0,0.59574279]
[1693567712644,2.02353474,26015.0,26014.0,0.59574279]
[1693567712840,2.00673474,26015.0,26014.0,0.59574279]
[1693567713086,1.87497474,26015.0,26014.0,0.59574279]
[1693567713324,2.00853474,26015.0,26014.0,0.59574279]
[1693567713470,2.00877474,26015.0,26014.0,0.59574279]
[1693567713672,2.00913474,26015.0,26014.0,0.59574279]
[1693567713872,2.00901474,26015.0,26014.0,0.59574279]
[1693567714069,2.00937474,26015.0,26014.0,0.59574279]
[1693567714273,2.01033474,26015.0,26014.0,0.59574279]
[1693567714565,2.01081474,26015.0,26014.0,0.59574279]
[1693567714785,2.01117474,26015.0,26014.0,0.59574279]
[1693567714985,2.01129474,26015.0,26014.0,0.59574279]
[1693567715228,2.01093474,26015.0,26014.0,0.59574279]
[1693567715448,2.01177474,26015.0,26014.0,0.59574279]
[1693567715656,2.01201474,26015.0,26014.0,0.59574279]
[1693567715856,2.01225474,26015.0,26014.0,0.59574279]
[1693567716052,2.01249474,26015.0,26014.0,0.59574279]
[1693567716253,2.01285474,26015.0,26014.0,0.59574279]
[1693567716430,2.01297474,26015.0,26014.0,0.59574279]
[1693567716633,2.01321474,26015.0,26014.0,0.59574279]
[1693567716967,2.01225474,26015.0,26014.0,0.59574279]
[1693567717185,2.01237474,26015.0,26014.0,0.59574279]
[1693567717295,2.01225474,26015.0,26014.0,0.59574279]
[1693567717504,2.01237474,26015.0,26014.0,0.59574279]
[1693567717704,2.01405474,26015.0,26014.0,0.59574279]
[1693567717945,2.01393474,26015.0,26014.0,0.59574279]
[1693567718350,2.01417474,26015.0,26014.0,0.59574279]
[1693567718752,2.01441474,26015.0,26014.0,0.59574279]
[1693567719115,2.01453474,26015.0,26014.0,0.59574279]
[1693567719955,2.01441474,26015.0,26014.0,0.59574279]
[1693567720160,2.01417474,26015.0,26014.0,0.59574279]
[1693567720364,2.01441474,26015.0,26014.0,0.59574279]
[1693567720574,2.01429474,26015.0,26014.0,0.59574279]
[1693567720777,2.01441474,26015.0,26014.0,0.59574279]
[1693567721192,2.01453474,26015.0,26014.0,0.59574279]
[1693567721408,2.01465474,26015.0,26014.0,0.59574279]
[1693567721615,2.01477474,26015.0,26014.0,0.59574279]
[1693567721772,2.01525474,26015.0,26014.0,0.59574279]
[1693567721950,2.01873474,26015.0,26014.0,0.59574279]
[1693567722159,2.01909474,26015.0,26014.0,0.59574279]
[1693567722401,2.01945474,26015.0,26014.0,0.59574279]
[1693567722595,2.01969474,26015.0,26014.0,0.59574279]
[1693567722796,2.01993474,26015.0,26014.0,0.59574279]
[1693567723019,1.05955164,26015.0,26014.0,0.59574279]
[1693567723216,2.0304786,26015.0,26014.0,0.59574279]
[1693567723733,2.0305986,26015.0,26014.0,0.59574279]
[1693567723940,2.0308386,26015.0,26014.0,0.59574279]
[1693567724262,2.0310786,26015.0,26014.0,0.59574279]
[1693567724536,2.0311986,26015.0,26014.0,0.59574279]
[1693567724759,2.0307186,26015.0,26014.0,0.59574279]
[1693567724973,2.0309586,26015.0,26014.0,0.59574279]
[1693567725094,2.0310786,26015.0,26014.0,0.59574279]
[1693567725298,2.0311986,26015.0,26014.0,0.59574279]
[1693567725499,2.0313186,26015.0,26014.0,0.59574279]
[1693567725700,2.0315586,26015.0,26014.0,0.59574279]
[1693567725927,2.0316786,26015.0,26014.0,0.59574279]
[1693567726276,2.0319186,26015.0,26014.0,0.59574279]
[1693567726625,2.0320386,26015.0,26014.0,0.59574279]
[1693567726831,2.0323986,26015.0,26014.0,0.59574279]
[1693567727229,2.0467986,26015.0,26014.0,0.59574279]
[1693567727441,2.0451186,26015.0,26014.0,0.59574279]
[1693567727761,2.0448786,26015.0,26014.0,0.59574279]
[1693567727960,2.0449986,26015.0,26014.0,0.59574279]
[1693567728491,2.0448786,26015.0,26014.0,0.59574279]
[1693567728816,2.0469186,26015.0,26014.0,0.59574279]
[1693567729391,2.0470386,26015.0,26014.0,0.59574279]
[1693567730049,2.0471586,26015.0,26014.0,0.59574279]
[1693567730271,2.0473986,26015.0,26014.0,0.59574279]
[1693567730470,2.0471586,26015.0,26014.0,0.59574279]
[1693567730873,2.0472786,26015.0,26014.0,0.59574279]
[1693567731439,2.0475186,26015.0,26014.0,0.59574279]
[1693567732033,2.0476386,26015.0,26014.0,0.59574279]
[1693567732436,2.0473986,26015.0,26014.0,0.59574279]
[1693567732859,2.0475186,26015.0,26014.0,0.59574279]
[1693567733598,2.0476386,26015.0,26014.0,0.59574279]
[1693567733992,2.0475186,26015.0,26014.0,0.59574279]
[1693567734381,2.0473986,26015.0,26014.0,0.59574279]
[1693567734925,2.0472786,26015.0,26014.0,0.59574279]
[1693567735276,2.0473986,26015.0,26014.0,0.59574279]
[1693567735481,2.05225206,26015.0,26014.0,0.59574279]
[1693567736052,2.05549206,26015.0,26014.0,0.59574279]
[1693567736470,2.05537206,26015.0,26014.0,0.59574279]
[1693567736625,2.05525206,26015.0,26014.0,0.59574279]
[1693567736774,2.05549206,26015.0,26014.0,0.59574279]
[1693567736981,2.25074502,26015.0,26014.0,0.074]
[1693567737192,0.16,26014.0,26013.0,0.03146221]
[1693567737421,0.16,26014.0,26012.0,0.057664]
[1693567737422,1.98541201,26014.0,26012.0,0.115328]
[1693567737630,1.20760696,26013.0,26012.0,0.115328]
[1693567737836,2.19054105,26013.0,26012.0,0.115328]
[1693567738036,2.09801374,26013.0,26012.0,0.115328]
[1693567738258,2.08241374,26013.0,26012.0,0.115328]
[1693567738462,2.08961374,26013.0,26012.0,0.115328]
[1693567738674,2.08565374,26013.0,26012.0,0.231656]
[1693567738875,2.34076076,26013.0,26012.0,0.231656]
[1693567739227,2.34028076,26013.0,26012.0,0.231656]
[1693567739425,2.09561374,26013.0,26012.0,0.230656]
[1693567739630,2.09561374,26013.0,26012.0,0.172993]
[1693567739631,2.10449374,26013.0,26012.0,0.172993]
[1693567739844,2.10833374,26013.0,26012.0,0.175993]
[1693567740033,2.09825374,26013.0,26012.0,0.175993]
[1693567740203,2.10461374,26013.0,26012.0,0.175993]
[1693567740405,2.10449374,26013.0,26012.0,0.175993]
[1693567740606,2.10609374,26013.0,26012.0,0.186993]
[1693567740811,2.10561374,26013.0,26012.0,0.186993]
[1693567740996,2.10153374,26013.0,26012.0,0.186993]
[1693567741203,2.10237374,26013.0,26012.0,0.186993]
[1693567741557,2.09709374,26013.0,26012.0,0.186993]
[1693567741766,2.09673374,26013.0,26012.0,0.186993]
[1693567741983,2.09217374,26013.0,26012.0,0.186993]
[1693567742167,2.08989374,26013.0,26012.0,0.186993]
[1693567742373,2.08965374,26013.0,26012.0,0.186993]
[1693567742574,2.08941374,26013.0,26012.0,0.186993]
[1693567742799,2.08881374,26013.0,26012.0,0.244658]
[1693567742975,2.31902526,26013.0,26012.0,0.244658]
[1693567743176,2.07261374,26013.0,26012.0,0.244658]
[1693567743379,1.98270004,26013.0,26012.0,0.244658]
[1693567743534,1.98258004,26013.0,26012.0,0.244658]
[1693567743742,1.98402004,26013.0,26012.0,0.244658]
[1693567743944,1.98390004,26013.0,26012.0,0.244658]
[1693567744156,1.98378004,26013.0,26012.0,0.244658]
[1693567744356,2.18432204,26013.0,26012.0,0.244658]
[1693567744555,2.18408204,26013.0,26012.0,0.244658]
[1693567744794,2.18396204,26013.0,26012.0,0.244658]
[1693567745403,2.18372204,26013.0,26012.0,0.244658]
[1693567745611,2.18420204,26013.0,26012.0,0.244658]
[1693567745958,1.98366004,26013.0,26012.0,0.244658]
[1693567746088,2.19317197,26013.0,26012.0,0.244658]
[1693567746315,2.19353197,26013.0,26012.0,0.244658]
[1693567746575,1.98378004,26013.0,26012.0,0.244658]
[1693567746802,1.98390004,26013.0,26012.0,0.434658]
[1693567746958,1.98342004,26013.0,26012.0,0.434658]
[1693567747164,2.26131051,26013.0,26012.0,0.434658]
[1693567747483,2.26143051,26013.0,26012.0,0.434658]
[1693567747734,1.98318004,26013.0,26012.0,0.434658]
[1693567748080,2.18737947,26013.0,26012.0,0.244658]
[1693567748294,2.18725947,26013.0,26012.0,0.244658]
[1693567748599,2.18713947,26013.0,26012.0,0.244658]
[1693567748745,2.18701947,26013.0,26012.0,0.244658]
[1693567749152,2.18653947,26013.0,26012.0,0.27483231]
[1693567749361,2.18665947,26013.0,26012.0,0.27483231]
[1693567749609,2.18689947,26013.0,26012.0,0.27483231]
[1693567750116,2.18677947,26013.0,26012.0,0.27483231]
[1693567750359,2.18653947,26013.0,26012.0,0.27483231]
[1693567750572,2.23011129,26013.0,26012.0,0.27483231]
[1693567750785,2.22999129,26013.0,26012.0,0.27483231]
[1693567750971,2.23011129,26013.0,26012.0,0.27483231]
[1693567751177,2.23035129,26013.0,26012.0,0.27483231]
[1693567751523,2.02603186,26013.0,26012.0,0.27483231]
[1693567751732,2.28887247,26013.0,26012.0,0.27483231]
[1693567752144,2.28875247,26013.0,26012.0,0.27483231]
[1693567752341,2.28863247,26013.0,26012.0,0.27483231]
[1693567752615,2.02591186,26013.0,26012.0,0.27483231]
[1693567752867,2.02699186,26013.0,26012.0,0.27483231]
[1693567753045,2.22552541,26013.0,26012.0,0.27483231]
[1693567753247,2.22396541,26013.0,26012.0,0.27483231]
[1693567753775,2.27294874,26013.0,26012.0,0.27483231]
[1693567753955,2.27282874,26013.0,26012.0,0.27483231]
[1693567754154,2.27270874,26013.0,26012.0,0.27483231]
[1693567754312,2.27282874,26013.0,26012.0,0.27483231]
[1693567754509,2.02723186,26013.0,26012.0,0.27483231]
[1693567754714,2.05387186,26013.0,26012.0,0.27483231]
[1693567754913,1.92899186,26013.0,26012.0,0.27483231]
[1693567755113,1.92695186,26013.0,26012.0,0.27483231]
[1693567755435,1.92755186,26013.0,26012.0,0.27483231]
[1693567755614,1.92803186,26013.0,26012.0,0.27483231]
[1693567755817,1.92491186,26013.0,26012.0,0.27483231]
[1693567756018,1.92575186,26013.0,26012.0,0.27483231]
[1693567756212,2.13086845,26013.0,26012.0,0.27483231]
[1693567756446,2.13050845,26013.0,26012.0,0.27483231]
[1693567756644,2.13038845,26013.0,26012.0,0.27483231]
[1693567756854,1.92491186,26013.0,26012.0,0.244658]
[1693567757005,2.04415186,26013.0,26012.0,0.244658]
[1693567757368,2.04391186,26013.0,26012.0,0.244658]
[1693567757578,2.04379186,26013.0,26012.0,0.244658]
[1693567757774,2.04547186,26013.0,26012.0,0.244658]
[1693567758187,2.04535186,26013.0,26012.0,0.244658]
[1693567758385,2.29768328,26013.0,26012.0,0.244658]
[1693567758538,2.29708328,26013.0,26012.0,0.244658]
[1693567758740,2.29672328,26013.0,26012.0,0.244658]
[1693567758950,2.29540328,26013.0,26012.0,0.254658]
[1693567759150,2.04355186,26013.0,26012.0,0.254658]
[1693567759478,2.26608111,26013.0,26012.0,0.254658]
[1693567759685,2.26500111,26013.0,26012.0,0.254658]
[1693567759888,2.26560111,26013.0,26012.0,0.254658]
[1693567760041,2.26548111,26013.0,26012.0,0.254658]
[1693567760278,2.25996111,26013.0,26012.0,0.254658]
[1693567760479,2.26068111,26013.0,26012.0,0.254658]
[1693567760735,2.26044111,26013.0,26012.0,0.254658]
[1693567760942,2.25816111,26013.0,26012.0,0.254658]
[1693567761119,2.25996111,26013.0,26012.0,0.254658]
[1693567761323,2.26044111,26013.0,26012.0,0.254658]
[1693567761531,2.25960111,26013.0,26012.0,0.254658]
[1693567761726,2.25792111,26013.0,26012.0,0.254658]
[1693567761931,2.25732111,26013.0,26012.0,0.254658]
[1693567762134,2.26020111,26013.0,26012.0,0.254658]
[1693567762334,2.25972111,26013.0,26012.0,0.254658]
[1693567762539,2.26056111,26013.0,26012.0,0.254658]
[1693567762762,2.25996111,26013.0,26012.0,0.254658]
[1693567762921,2.26682069,26013.0,26012.0,0.254658]
[1693567763113,2.26694069,26013.0,26012.0,0.254658]
[1693567763295,2.06863186,26013.0,26012.0,0.254658]
[1693567763495,2.06827186,26013.0,26012.0,0.254658]
[1693567763722,2.06815186,26013.0,26012.0,0.254658]
[1693567763928,2.06755186,26013.0,26012.0,0.254658]
[1693567764135,2.29251991,26013.0,26012.0,0.254658]
[1693567764334,2.29539991,26013.0,26012.0,0.254658]
[1693567764570,2.06803186,26013.0,26012.0,0.254658]
[1693567764799,2.06839186,26013.0,26012.0,0.254658]
[1693567764999,2.06803186,26013.0,26012.0,0.254658]
[1693567765136,2.06311186,26013.0,26012.0,0.254658]
[1693567765359,2.06347186,26013.0,26012.0,0.254658]
[1693567765583,2.06695186,26013.0,26012.0,0.254658]
[1693567765786,2.06671186,26013.0,26012.0,0.254658]
[1693567765942,2.34587435,26013.0,26012.0,0.254658]
[1693567766143,2.06635186,26013.0,26012.0,0.254658]
[1693567766345,2.06611186,26013.0,26012.0,0.254658]
[1693567766606,2.33496035,26013.0,26012.0,0.254658]
[1693567766785,2.32836035,26013.0,26012.0,0.254658]
[1693567767042,2.32848035,26013.0,26012.0,0.254658]
[1693567767246,2.32596035,26013.0,26012.0,0.254658]
[1693567767425,2.32800035,26013.0,26012.0,0.254658]
[1693567767622,2.32764035,26013.0,26012.0,0.254658]
[1693567767870,2.33016035,26013.0,26012.0,0.254658]
[1693567767983,2.33004035,26013.0,26012.0,0.254658]
[1693567768182,2.33016035,26013.0,26012.0,0.254658]
[1693567768407,2.32992035,26013.0,26012.0,0.254658]
[1693567768700,2.32968035,26013.0,26012.0,0.254658]
[1693567768901,2.32956035,26013.0,26012.0,0.254658]
[1693567769105,2.06071186,26013.0,26012.0,0.254658]
[1693567769303,2.06083186,26013.0,26012.0,0.254658]
[1693567769523,2.29501984,26013.0,26012.0,0.254658]
[1693567769703,2.06251186,26013.0,26012.0,0.254658]
[1693567769909,2.27890418,26013.0,26012.0,0.254658]
[1693567770107,2.27830418,26013.0,26012.0,0.254658]
[1693567770336,2.06203186,26013.0,26012.0,0.254658]
[1693567770562,2.10627186,26013.0,26012.0,0.139328]
[1693567770737,2.10207186,26013.0,26012.0,0.139328]
[1693567770935,2.09955186,26013.0,26012.0,0.139328]
[1693567771185,2.10111186,26013.0,26012.0,0.139328]
[1693567771401,2.10375186,26013.0,26012.0,0.139328]
[1693567771587,2.10483186,26013.0,26012.0,0.139328]
[1693567771827,2.51836151,26013.0,26012.0,0.139328]
[1693567772124,2.31327186,26013.0,26010.0,0.115336]
[1693567772325,0.8296662,26011.0,26010.0,0.115336]
[1693567772518,1.71031946,26011.0,26010.0,0.115336]
[1693567772704,2.19455946,26011.0,26010.0,0.115336]
[1693567772896,2.19707946,26011.0,26010.0,0.115336]
[1693567773348,2.19803946,26011.0,26010.0,0.127336]
[1693567773525,2.19779946,26011.0,26010.0,0.127336]
[1693567773698,2.19803946,26011.0,26010.0,0.124336]
[1693567773902,2.19991946,26011.0,26010.0,0.144336]
[1693567774104,2.20079946,26011.0,26010.0,0.150336]
[1693567774318,2.23543946,26011.0,26010.0,0.150336]
[1693567774560,2.24543946,26011.0,26010.0,0.151336]
[1693567774743,2.24543946,26011.0,26010.0,0.150336]
[1693567774744,2.23819946,26011.0,26010.0,0.150336]
[1693567774951,2.23795946,26011.0,26010.0,0.151336]
[1693567775070,2.24663946,26011.0,26010.0,0.151336]
[1693567775286,2.24663946,26011.0,26010.0,0.116336]
[1693567775287,2.22671946,26011.0,26010.0,0.116336]
[1693567775501,2.22635946,26011.0,26010.0,0.116336]
[1693567775720,2.23035946,26011.0,26010.0,0.116336]
[1693567775948,2.23227946,26011.0,26010.0,0.116336]
[1693567776147,2.23743946,26011.0,26010.0,0.116336]
[1693567776526,2.23731946,26011.0,26010.0,0.116336]
[1693567776702,2.23647946,26011.0,26010.0,0.116336]
[1693567777500,2.22951946,26011.0,26010.0,0.116336]
[1693567777709,2.23335946,26011.0,26010.0,0.116336]
[1693567778020,2.23479946,26011.0,26010.0,0.116336]
[1693567778460,2.23515946,26011.0,26010.0,0.116336]
[1693567778661,2.23503946,26011.0,26010.0,0.116336]
[1693567778929,2.23515946,26011.0,26010.0,0.116336]
[1693567779079,2.23455946,26011.0,26010.0,0.116336]
[1693567779283,2.23515946,26011.0,26010.0,0.116336]
[1693567779618,2.23539946,26011.0,26010.0,0.116336]
[1693567779812,2.23443946,26011.0,26010.0,0.116336]
[1693567779970,2.23479946,26011.0,26010.0,0.116336]
[1693567780369,2.23719946,26011.0,26010.0,0.126336]
[1693567780567,2.23743946,26011.0,26010.0,0.126336]
[1693567780704,2.28086349,26011.0,26010.0,0.126336]
[1693567781112,2.0847895,26011.0,26010.0,0.126336]
[1693567781532,2.0845495,26011.0,26010.0,0.126336]
[1693567781739,2.0846695,26011.0,26010.0,0.126336]
[1693567781912,2.0845495,26011.0,26010.0,0.11552077]
[1693567782117,2.0846695,26011.0,26010.0,0.11552077]
[1693567782317,2.17675841,26011.0,26010.0,0.11552077]
[1693567782516,2.0820295,26011.0,26010.0,0.11552077]
[1693567782811,2.0844295,26011.0,26010.0,0.11552077]
[1693567783615,2.0846695,26011.0,26010.0,0.11552077]
[1693567783946,2.0845495,26011.0,26010.0,0.11552077]
[1693567784286,2.0853895,26011.0,26010.0,0.11552077]
[1693567784494,2.0855095,26011.0,26010.0,0.11552077]
[1693567784646,2.0852695,26011.0,26010.0,0.11552077]
[1693567785052,2.0892295,26011.0,26010.0,0.11552077]
[1693567785402,2.0925895,26011.0,26010.0,0.11552077]
[1693567785651,2.0922295,26011.0,26010.0,0.11552077]
[1693567786020,2.0918695,26011.0,26010.0,0.11552077]
[1693567786330,2.0913895,26011.0,26010.0,0.11552077]
[1693567786531,2.0859895,26011.0,26010.0,0.11552077]
[1693567787069,2.0864695,26011.0,26010.0,0.11552077]
[1693567787268,2.18131841,26011.0,26010.0,0.11552077]
[1693567787471,2.18287841,26011.0,26010.0,0.11552077]
[1693567787671,2.18299841,26011.0,26010.0,0.11552077]
[1693567788073,2.18239841,26011.0,26010.0,0.11552077]
[1693567788269,2.18467841,26011.0,26010.0,0.11552077]
[1693567788479,2.18359841,26011.0,26010.0,0.11552077]
[1693567788802,2.0910295,26011.0,26010.0,0.11552077]
[1693567789003,2.18311841,26011.0,26010.0,0.11552077]
[1693567789320,2.18323841,26011.0,26010.0,0.11552077]
[1693567789548,2.18311841,26011.0,26010.0,0.11552077]
[1693567790154,2.18359841,26011.0,26010.0,0.11552077]
[1693567790321,2.18347841,26011.0,26010.0,0.11552077]
[1693567790574,2.18335841,26011.0,26010.0,0.11552077]
[1693567790774,2.18299841,26011.0,26010.0,0.11552077]
[1693567790975,2.18239841,26011.0,26010.0,0.11552077]
[1693567791198,2.18371841,26011.0,26010.0,0.11552077]
[1693567791402,2.18479841,26011.0,26010.0,0.11552077]
[1693567791563,2.18563841,26011.0,26010.0,0.11552077]
[1693567791764,2.18611841,26011.0,26010.0,0.11552077]
[1693567792166,2.18587841,26011.0,26010.0,0.11552077]
[1693567792545,2.18707841,26011.0,26010.0,0.11552077]
[1693567792778,1.98105899,26011.0,26010.0,0.05785277]
[1693567792985,2.23767899,26011.0,26010.0,0.001]
[1693567793220,2.23767899,26011.0,26003.0,0.057683]
[1693567793221,0.06,26008.0,26003.0,0.057683]
[1693567793435,0.06,26008.0,26002.0,0.16124082]
[1693567793436,0.18,26003.0,26002.0,0.057687]
[1693567793681,0.12,26000.0,25999.0,0.12919591]
[1693567793898,0.04,25999.0,25997.0,0.38057478]
[1693567794110,0.66032149,25998.0,25997.0,0.38057478]
[1693567794317,0.66032149,25998.0,25997.0,0.34190092]
[1693567794522,0.50548678,25998.0,25997.0,0.61650057]
[1693567794728,0.50548678,25998.0,25997.0,0.20352516]
[1693567795340,0.54885797,25998.0,25997.0,0.20352516]
[1693567795519,0.55185797,25998.0,25997.0,0.24052516]
[1693567795751,0.55185797,25998.0,25997.0,0.35592116]
[1693567795953,0.55185797,25998.0,25997.0,0.34992116]
[1693567796158,0.54885797,25998.0,25997.0,0.31892116]
[1693567796362,0.55185797,25998.0,25997.0,0.35492116]
[1693567796563,0.55485797,25998.0,25997.0,0.38592116]
[1693567797146,0.55485797,25998.0,25997.0,0.44305468]
[1693567797527,0.55485797,25998.0,25997.0,0.45462808]
[1693567797729,0.55485797,25998.0,25997.0,0.60856708]
[1693567799301,0.55485797,25998.0,25997.0,0.60850048]
[1693567799474,0.61971797,25998.0,25997.0,0.60850048]
[1693567799679,0.62409797,25998.0,25997.0,0.60850048]
[1693567799885,0.62325797,25998.0,25997.0,0.60850048]
[1693567800080,0.62319797,25998.0,25997.0,0.60850048]
[1693567800286,0.62385797,25998.0,25997.0,0.60850048]
[1693567800481,0.62313797,25998.0,25997.0,0.60850048]
[1693567800687,0.62142797,25998.0,25997.0,0.60850048]
[1693567800884,0.62256797,25998.0,25997.0,0.60850048]
[1693567801085,0.62052797,25998.0,25997.0,0.60850048]
[1693567801287,0.61944797,25998.0,25997.0,0.60850048]
[1693567801447,0.55440797,25998.0,25997.0,0.60850048]
[1693567802474,0.16777119,25998.0,25997.0,0.60850048]
[1693567804004,0.16004256,25998.0,25997.0,0.60850048]
[1693567804767,0.12,26001.0,25997.0,0.60850048]
[1693567804980,0.0711,26006.0,25998.0,0.3]
[1693567805194,1.50548678,26004.0,26000.0,0.0102525]
[1693567805455,1.50548678,26004.0,26001.0,0.173067]
[1693567805456,0.36528928,26004.0,26001.0,0.173067]
[1693567805666,0.2081475,26004.0,26001.0,0.288445]
[1693567806700,0.2101475,26004.0,26001.0,0.325445]
[1693567806909,0.2081475,26004.0,26001.0,0.288445]
[1693567807300,0.2101475,26004.0,26001.0,0.325445]
[1693567807700,0.2121475,26004.0,26001.0,0.362445]
[1693567808180,0.2121475,26004.0,26001.0,0.325445]
[1693567808181,0.2101475,26004.0,26001.0,0.325445]
[1693567808427,0.2121475,26004.0,26001.0,0.362445]
[1693567808747,1.0,26009.0,26002.0,0.1]
[1693567808748,0.7348275,26009.0,26002.0,0.1]
[1693567808903,0.1184,26008.0,26004.0,0.403781]
[1693567810147,0.1194,26008.0,26004.0,0.403781]
[1693567810850,0.1194,26008.0,26004.0,0.406781]
[1693567811399,0.18594,26008.0,26004.0,0.403781]
[1693567811622,0.1853,26008.0,26004.0,0.403781]
[1693567811824,0.18684,26008.0,26004.0,0.406781]
[1693567812024,0.18674,26008.0,26004.0,0.406781]
[1693567812249,0.19274,26008.0,26004.0,0.403781]
[1693567812428,0.19482,26008.0,26004.0,0.403781]
[1693567812607,0.1949,26008.0,26004.0,0.403781]
[1693567812801,0.19526,26008.0,26004.0,0.403781]
[1693567813009,0.19806,26008.0,26004.0,0.403781]
[1693567813216,0.1184,26005.0,26004.0,0.346098]
[1693567813415,0.1184,26005.0,26004.0,0.646098]
[1693567813669,0.1184,26005.0,26004.0,0.686098]
[1693567813993,0.16600949,26005.0,26004.0,0.683098]
[1693567814829,0.16800949,26005.0,26004.0,0.720098]
[1693567815030,0.04960949,26005.0,26004.0,0.720098]
[1693567815238,0.04760949,26005.0,26004.0,0.646098]
[1693567815653,0.04960949,26005.0,26004.0,0.683098]
[1693567816984,0.05160949,26005.0,26004.0,0.720098]
[1693567817403,0.51693627,26005.0,26004.0,0.662415]
[1693567817605,0.51693627,26005.0,26004.0,0.304732]
[1693567817606,0.66779627,26005.0,26004.0,0.304732]
[1693567817823,0.68051627,26005.0,26004.0,0.304732]
[1693567818063,0.70007627,26005.0,26004.0,0.304732]
[1693567818297,0.82385627,26005.0,26004.0,0.304732]
[1693567818599,0.68627627,26005.0,26004.0,0.33538943]
[1693567818812,0.81701627,26005.0,26004.0,0.33538943]
[1693567819063,0.68513627,26005.0,26004.0,0.33538943]
[1693567819233,0.68423627,26005.0,26004.0,0.33538943]
[1693567819436,0.81797627,26005.0,26004.0,0.33538943]
[1693567819690,0.82145627,26005.0,26004.0,0.33538943]
[1693567819812,0.81929627,26005.0,26004.0,0.33538943]
[1693567820022,0.82313627,26005.0,26004.0,0.33538943]
[1693567820229,0.68441627,26005.0,26004.0,0.33538943]
[1693567820432,0.68333627,26005.0,26004.0,0.33538943]
[1693567820680,0.68267627,26005.0,26004.0,0.33538943]
[1693567820886,0.68093627,26005.0,26004.0,0.33538943]
[1693567821084,0.67673627,26005.0,26004.0,0.33538943]
[1693567821338,0.67205627,26005.0,26004.0,0.33538943]
[1693567821506,0.67535627,26005.0,26004.0,0.33538943]
[1693567821708,0.67511627,26005.0,26004.0,0.33538943]
[1693567821915,0.67193627,26005.0,26004.0,0.33538943]
[1693567822117,0.67475627,26005.0,26004.0,0.33538943]
[1693567822322,0.67451627,26005.0,26004.0,0.33538943]
[1693567822544,0.67445627,26005.0,26004.0,0.33538943]
[1693567822747,0.67421627,26005.0,26004.0,0.33538943]
[1693567822900,0.67409627,26005.0,26004.0,0.33538943]
[1693567823104,0.67391627,26005.0,26004.0,0.33538943]
[1693567823341,0.67355627,26005.0,26004.0,0.33538943]